fUSD/lending_fUSD_20240217
["ID","MTS","AMOUNT","RATE_DAILY","PERIOD"]
[314304708,1708168241832,-500.0,0.00035616,2]
[314304709,1708168241841,-500.0,0.00035616,2]
[314304710,1708168241852,-500.0,0.00035616,2]
[314304711,1708168241863,-1500.0,0.00035616,10]
[314304712,1708168241872,-5095.5,0.00035616,2]
[314304713,1708168241881,-155.0,0.00035617,2]
[314304714,1708168241890,-1438.79,0.00035795,2]
[314304715,1708168241922,-3991.71,0.00035798,2]
[314304716,1708168241937,-156.4,0.0003584,2]
[314304717,1708168241946,-338.44,0.000359,7]
[314304718,1708168241956,-1000.0,0.00035921,2]
[314304719,1708168241965,-160.02,0.00035937,2]
[314304720,1708168241974,-2551.43713194,0.00036288,2]
[314304721,1708168241983,-160.02,0.00036375,2]
[314304722,1708168241992,-1437.87726277,0.00036448,9]
[314304723,1708168242002,-40346.90677439,0.000365,7]
[314304724,1708168242011,-339.23667233,0.00036586,8]
[314304725,1708168242020,-355.14,0.00036698,2]
[314304726,1708168242029,-160.02,0.00036813,2]
[314304727,1708168242039,-167.0,0.00036916,2]
[314304728,1708168242048,-191.01,0.00036927,2]
[314304729,1708168242059,-150.0,0.00036986,2]
[314304730,1708168242068,-300.0,0.00036986,7]
[314304731,1708168242077,-450.0,0.00036986,12]
[314304732,1708168242087,-316.64550976,0.00036986,17]
[314304733,1708168242096,-155.0,0.00036987,2]
[314304734,1708168242106,-3991.71,0.00037075,2]
[314304735,1708168242115,-1000.0,0.00037126,2]
[314304736,1708168242123,-692.9848618,0.00037141,2]
[314304737,1708168242133,-160.02,0.00037252,2]
[314304738,1708168242142,-100000.0,0.000373,2]
[314304739,1708168242151,-12848.0,0.000373,2]
[314304740,1708168242161,-2344.0,0.000373,2]
[314304741,1708168242170,-178.61210794,0.000373,2]
[314304742,1708168242179,-189.69805008,0.00037399,4]
[314304743,1708168242189,-178927.78297634,0.000374,5]
[314304744,1708168242198,-156.4,0.00037451,2]
[314304745,1708168242207,-759.75542771,0.000375,5]
[314304746,1708168242217,-338.44,0.000375,7]
[314304747,1708168242225,-180.0,0.00037671,2]
[314304748,1708168242235,-160.02,0.0003769,2]
[314304749,1708168242244,-1831.82048553,0.00037699,2]
[314304750,1708168242253,-162.8658829,0.000378,2]
[314304751,1708168242262,-1437.87726277,0.000378,11]
[314304752,1708168242271,-152.06641792,0.000378,11]
[314304753,1708168242280,-209.18429795,0.0003787,7]
[314304754,1708168242289,-200.0,0.0003787,7]
[314304755,1708168242298,-200.0,0.0003787,7]
[314304756,1708168242310,-185868.57626912,0.00037877,2]
[314304757,1708168242319,-2379093.32257465,0.0003788,2]
[314304758,1708168242328,-198.88949831,0.00037899,2]
[314304759,1708168242338,-239.89394654,0.00037899,2]
[314304760,1708168242347,-668336.886584,0.000379,3]
[314304761,1708168242356,-198.88949831,0.00037999,2]
[314304762,1708168242365,-239.89394654,0.00037999,2]
[314304763,1708168242375,-198.88949831,0.00037999,2]
[314304764,1708168242384,-239.89394654,0.00037999,2]
[314304765,1708168242393,-100000.0,0.00038,8]
[314304766,1708168242403,-935.85066898,0.00038,2]
[314304767,1708168242412,-1903763.95679652,0.00038,2]
[314304768,1708168242422,-215.98921406,0.00038,4]
[314304769,1708168242431,-420.37567499,0.00038,2]
[314304770,1708168242440,-484.08793418,0.00038,2]
[314304771,1708168242449,-18211.22257101,0.00038,2]
[314304772,1708168242458,-160.02,0.00038128,2]
[314304773,1708168242467,-191.01,0.00038347,2]
[314304774,1708168242475,-3991.71,0.00038352,2]
[314304775,1708168242485,-201.70261338,0.00038356,2]
[314304776,1708168242494,-456.43,0.00038356,15]
[314304777,1708168242503,-201.59,0.00038356,2]
[314304778,1708168242512,-151.98,0.00038356,2]
[314304779,1708168242521,-155.0,0.00038357,2]
[314304780,1708168242530,-160.02,0.00038566,2]
[314304781,1708168242539,-13918.30258675,0.000387,4]
[314304782,1708168242548,-692.9848618,0.00038719,2]
[314304783,1708168242560,-18721.04056371,0.00038732,2]
[314304784,1708168242569,-235.46768901,0.000388,2]
[314304785,1708168242578,-179.3317343,0.00038862,2]
[314304786,1708168242587,-1453.72275971,0.00038862,2]
[314304787,1708168242596,-3271.94788055,0.00038862,2]
[314304788,1708168242605,-186.06270068,0.00038862,2]
[314304789,1708168242614,-339.23667233,0.00038862,9]
[314304790,1708168242623,-198.88949831,0.00038899,2]
[314304791,1708168242632,-239.89394654,0.00038899,2]
[314304792,1708168242641,-198.88949831,0.00038899,2]
[314304793,1708168242653,-239.89394654,0.00038899,2]
[314304794,1708168242662,-198.88949831,0.00038899,2]
[314304795,1708168242671,-239.89394654,0.00038899,2]
[314304796,1708168242681,-198.88949831,0.00038899,2]
[314304797,1708168242690,-239.89394654,0.00038899,2]
[314304798,1708168242699,-4142774.8263272,0.000389,3]
[314304799,1708168242708,-355.14,0.00038962,2]
[314304800,1708168242717,-100000.0,0.00039,9]
[314304801,1708168242726,-156.4,0.00039062,2]
[314304802,1708168242736,-1000.0,0.00039187,2]
[314304803,1708168242745,-529.23,0.0003926,2]
[314304804,1708168242755,-1000.0,0.000395,2]
[314304805,1708168242764,-338.44,0.000396,7]
[314304806,1708168242773,-3991.71,0.0003963,2]
[314304807,1708168242784,-1000.0,0.00039667,2]
[314304808,1708168242793,-13918.3,0.000397,4]
[314304809,1708168242801,-155.0,0.00039727,2]
[314304810,1708168242812,-153.02700985,0.0003976,5]
[314304811,1708168242821,-328.0698483,0.00039824,12]
[314304812,1708168242830,-726.00250677,0.00039824,10]
[314304813,1708168242839,-198.88949831,0.00039879,2]
[314304814,1708168242848,-239.89394654,0.00039879,2]
[314304815,1708168242857,-198.88949831,0.00039879,2]
[314304816,1708168242869,-239.89394654,0.00039879,2]
[314304817,1708168242878,-198.88949831,0.00039879,2]
[314304818,1708168242888,-239.89394654,0.00039879,2]
[314304819,1708168242898,-2267291.8093732,0.0003988,2]
[314304820,1708168242912,-18211.22257101,0.0003988,2]
[314304821,1708168242924,-1270.47860103,0.00039891,2]
[314304822,1708168242933,-150.1,0.000399,2]
[314304823,1708168242944,-184.55,0.000399,2]
[314304824,1708168242955,-100000.0,0.0004,20]
[314304825,1708168242965,-200.0,0.0004,2]
[314304826,1708168242974,-473.13466279,0.0004,2]
[314304827,1708168242983,-266.16367082,0.0004,12]
[314304828,1708168242993,-150.808351,0.0004,3]
[314304829,1708168243003,-150.0,0.0004,2]
[314304830,1708168243012,-692.9848618,0.00040298,5]
[314304831,1708168243021,-3000.0,0.0004052,4]
[314304832,1708168243031,-300.0,0.00040547,2]
[314304833,1708168243040,-156.4,0.00040673,2]
[314304835,1708168243049,-18721.04056371,0.00040724,3]
[314304836,1708168243059,-529.23,0.00040733,2]
[314304837,1708168243068,-17788.0,0.00040824,2]
[314304838,1708168243077,-66019.60119702,0.00040824,2]
[314304839,1708168243086,-23017.94119475,0.00040824,32]
[314304840,1708168243095,-1103.54391099,0.00040824,3]
[314304842,1708168243105,-15931.47244674,0.00040824,2]
[314304843,1708168243114,-275.15622716,0.00040824,30]
[314304844,1708168243123,-216.5760994,0.00040824,30]
[314304845,1708168243132,-155.56468996,0.00040824,120]
[314304846,1708168243141,-5358.94753529,0.00040824,2]
[314304847,1708168243151,-283.32387974,0.00040824,2]
[314304848,1708168243160,-468.77508963,0.00040824,2]
[314304849,1708168243169,-159.35404023,0.00040824,30]
[314304850,1708168243178,-155.39982316,0.00040824,2]
[314304851,1708168243187,-385.13127339,0.00040824,2]
[314304852,1708168243196,-17905.96232048,0.00040824,2]
[314304853,1708168243206,-32666.56886121,0.00040824,120]
[314304854,1708168243215,-201.59239623,0.00040824,120]
[314304855,1708168243224,-466.0482353,0.00040824,2]
[314304856,1708168243233,-656.47572142,0.00040824,2]
[314304857,1708168243242,-311.01975504,0.00040824,2]
[314304858,1708168243252,-3008.17816563,0.00040824,4]
[314304859,1708168243379,-6112.5089736,0.00040824,7]
[314304860,1708168243389,-5514.42836242,0.00040824,13]
[314304861,1708168243398,-2644.91665641,0.00040824,2]
[314304862,1708168243408,-6224.69585873,0.00040824,4]
[314304863,1708168243417,-156.29488104,0.00040824,2]
[314304864,1708168243426,-17186.66812909,0.00040824,2]
[314304865,1708168243436,-1808.63572407,0.00040824,2]
[314304866,1708168243445,-649.70326211,0.00040824,120]
[314304867,1708168243454,-169.71709592,0.00040824,120]
[314304868,1708168243463,-155.29370094,0.00040824,2]
[314304869,1708168243472,-20009.47953652,0.00040824,2]
[314304870,1708168243481,-306.59704943,0.00040824,120]
[314304871,1708168243491,-701.82634713,0.00040824,30]
[314304872,1708168243500,-151.34673705,0.00040824,30]
[314304873,1708168243509,-158.00946671,0.00040824,60]
[314304874,1708168243519,-437.6563897,0.00040824,14]
[314304875,1708168243528,-199.26055783,0.00040824,30]
[314304876,1708168243538,-5630.66900529,0.00040824,2]
[314304877,1708168243547,-298.62209,0.00040824,30]
[314304878,1708168243557,-230.0,0.00040824,120]
[314304879,1708168243566,-472.09255615,0.00040824,30]
[314304880,1708168243575,-170.32,0.00040879,10]
[314304881,1708168243585,-100000.0,0.00041,21]
[314304882,1708168243594,-800.0,0.00041,2]
[314304883,1708168243603,-1141.74525294,0.00041095,7]
[314304884,1708168243612,-2504.26815191,0.00041095,2]
[314304885,1708168243622,-750.0,0.00041095,2]
[314304886,1708168243631,-450.0,0.00041095,7]
[314304887,1708168243640,-1745.93009428,0.00041096,11]
[314304888,1708168243650,-2669.52471285,0.00041096,13]
[314304889,1708168243659,-29838.97451837,0.00041096,13]
[314304890,1708168243668,-2748.613901,0.00041096,12]
[314304892,1708168243677,-155.0,0.00041097,2]
[314304894,1708168243687,-1754.47,0.00041207,2]
[314304895,1708168243696,-355.14,0.00041226,2]
[314304896,1708168243705,-600.0,0.00041643,7]
[314304897,1708168243714,-201.59,0.00041781,2]
[314304898,1708168243723,-154.56,0.000418,4]
[314304899,1708168243732,-257.23,0.000418,4]
[314304900,1708168243741,-257.23,0.000418,4]
[314304901,1708168243750,-257.23,0.000418,4]
[314304902,1708168243760,-257.23,0.000418,4]
[314304903,1708168243769,-257.23,0.000418,4]
[314304904,1708168243778,-257.23,0.000418,4]
[314304905,1708168243787,-257.23,0.000418,4]
[314304906,1708168243796,-257.23,0.000418,4]
[314304907,1708168243806,-257.23,0.000418,4]
[314304908,1708168243815,-257.23,0.000418,4]
[314304909,1708168243824,-257.23,0.000418,4]
[314304910,1708168243834,-257.23,0.000418,4]
[314304911,1708168243843,-257.23,0.000418,4]
[314304912,1708168243856,-257.23,0.000418,4]
[314304913,1708168243866,-257.23,0.000418,4]
[314304914,1708168243875,-257.23,0.000418,4]
[314304915,1708168243885,-257.23,0.000418,4]
[314304916,1708168243895,-257.23,0.000418,4]
[314304917,1708168243904,-257.23,0.000418,4]
[314304918,1708168243913,-257.23,0.000418,4]
[314304919,1708168243923,-692.9848618,0.00041877,5]
[314304920,1708168243932,-231.21,0.0004196,120]
[314304921,1708168243944,-173.51,0.0004196,120]
[314304922,1708168243954,-192.29,0.0004197,120]
[314304923,1708168243963,-150.5,0.0004197,120]
[314304924,1708168243972,-150.5,0.0004198,120]
[314304925,1708168243982,-150.5,0.0004198,120]
[314304926,1708168243992,-150.5,0.0004199,120]
[314304927,1708168244001,-150.5,0.0004199,120]
[314304928,1708168244010,-156.66,0.0004199,120]
[314304929,1708168244019,-100000.0,0.00042,22]
[314304930,1708168244029,-316.03132048,0.00042,2]
[314304931,1708168244038,-8722.5118314,0.00042,2]
[314304932,1708168244046,-1231.24686331,0.00042,120]
[314304933,1708168244057,-78849.48082973,0.00042,4]
[314304934,1708168244066,-965.47916117,0.00042,7]
[314304935,1708168244075,-338.5789,0.00042,59]
[314304936,1708168244084,-1297.63261035,0.0004201,2]
[314304937,1708168244093,-456.43,0.00042092,15]
[314304938,1708168244102,-338.44,0.000421,7]
[314304939,1708168244112,-750.0,0.00042191,7]
[314304940,1708168244121,-166.05101382,0.00042197,30]
[314304941,1708168244130,-529.23,0.00042205,2]
[314304942,1708168244139,-1000.0,0.00042209,2]
[314304943,1708168244147,-156.4,0.00042283,2]
[314304944,1708168244156,-750.0,0.00042465,3]
[314304945,1708168244166,-155.0,0.00042467,2]
[314304946,1708168244175,-460.49241517,0.00042739,7]
[314304947,1708168244184,-198.88949831,0.00042818,4]
[314304948,1708168244194,-239.89394654,0.00042818,4]
[314304949,1708168244205,-264348.20538451,0.00042819,5]
[314304950,1708168244214,-3444.48866904,0.00042888,32]
[314304951,1708168244224,-330750.26468739,0.00042998,3]
[314304952,1708168244233,-420.37567499,0.00042998,2]
[314304953,1708168244242,-484.08793418,0.00042998,2]
[314304954,1708168244250,-100000.0,0.00043,23]
[314304955,1708168244260,-3000.0,0.0004302,16]
[314304956,1708168244270,-198.88949831,0.00043399,4]
[314304957,1708168244279,-239.89394654,0.00043399,4]
[314304958,1708168244288,-198.88949831,0.00043399,4]
[314304959,1708168244297,-239.89394654,0.00043399,4]
[314304960,1708168244308,-198.88949831,0.00043399,4]
[314304961,1708168244317,-239.89394654,0.00043399,4]
[314304962,1708168244326,-198.88949831,0.00043399,4]
[314304963,1708168244335,-239.89394654,0.00043399,4]
[314304964,1708168244344,-198.88949831,0.00043399,4]
[314304965,1708168244353,-239.89394654,0.00043399,4]
[314304966,1708168244363,-4596986.54130391,0.000434,3]
[314304967,1708168244373,-18211.22257101,0.000434,2]
[314304968,1708168244382,-692.9848618,0.00043456,5]
[314304969,1708168244391,-355.14,0.0004349,2]
[314304970,1708168244400,-529.23,0.00043677,2]
[314304971,1708168244410,-13918.3,0.000437,11]
[314304972,1708168244419,-250.0,0.00043835,7]
[314304973,1708168244428,-750.0,0.00043835,3]
[314304974,1708168244437,-155.0,0.00043837,2]
[314304975,1708168244446,-100000.0,0.00044,24]
[314304976,1708168244456,-28099.00370147,0.00044,2]
[314304977,1708168244465,-1873.9865275,0.00044,4]
[314304978,1708168244476,-22688.5956893,0.00044091,2]
[314304979,1708168244485,-500.0,0.00044383,7]
[314304980,1708168244494,-1000.0,0.000445,2]
[314304981,1708168244503,-167.8862141,0.00044651,30]
[314304982,1708168244512,-151.98,0.00044749,2]
[314304983,1708168244522,-1000.0,0.00044751,2]
[314304984,1708168244530,-33839.0615,0.000449,2]
[314304985,1708168244539,-750.0,0.00044931,7]
[314304987,1708168244549,-100000.0,0.00045,35]
[314304988,1708168244558,-447.52311601,0.00045,4]
[314304990,1708168244568,-4833.78305591,0.00045,17]
[314304992,1708168244577,-404.92800675,0.00045,4]
[314304993,1708168244586,-3943.2958961,0.00045,10]
[314304994,1708168244595,-31119.79014359,0.00045,10]
[314304995,1708168244605,-692.9848618,0.00045035,5]
[314304997,1708168244614,-201.8018,0.0004514,30]
[314304998,1708168244623,-529.23,0.00045149,2]
[314304999,1708168244631,-154.56,0.000452,5]
[314305000,1708168244640,-154.56,0.000452,5]
[314305001,1708168244649,-257.23,0.000452,5]
[314305002,1708168244658,-257.23,0.000452,5]
[314305003,1708168244668,-257.23,0.000452,5]
[314305004,1708168244677,-257.23,0.000452,5]
[314305005,1708168244686,-257.23,0.000452,5]
[314305006,1708168244695,-257.23,0.000452,5]
[314305007,1708168244703,-257.23,0.000452,5]
[314305008,1708168244712,-257.23,0.000452,5]
[314305009,1708168244721,-257.23,0.000452,5]
[314305010,1708168244730,-257.23,0.000452,5]
[314305011,1708168244739,-257.23,0.000452,5]
[314305012,1708168244748,-257.23,0.000452,5]
[314305013,1708168244757,-257.23,0.000452,5]
[314305014,1708168244767,-257.23,0.000452,5]
[314305015,1708168244776,-257.23,0.000452,5]
[314305016,1708168244786,-257.23,0.000452,5]
[314305017,1708168244795,-257.23,0.000452,5]
[314305018,1708168244805,-257.23,0.000452,5]
[314305019,1708168244815,-257.23,0.000452,5]
[314305020,1708168244824,-257.23,0.000452,5]
[314305021,1708168244832,-256.29499783,0.00045205,3]
[314305022,1708168244842,-201.59,0.00045205,2]
[314305023,1708168244851,-162.20812429,0.00045207,2]
[314305024,1708168244863,-158.23203844,0.00045378,30]
[314305025,1708168244872,-1000.0,0.00045479,7]
[314305026,1708168244882,-3000.0,0.0004552,28]
[314305027,1708168244891,-355.14,0.00045754,2]
[314305028,1708168244900,-456.43,0.00045828,15]
[314305029,1708168244909,-100000.0,0.00046,36]
[314305030,1708168244918,-1250.0,0.00046027,7]
[314305031,1708168244927,-1500.0,0.00046575,7]
[314305032,1708168244936,-692.9848618,0.00046614,5]
[314305033,1708168244947,-5095.5,0.00046849,120]
[314305034,1708168244956,-51389.51906399,0.00047,37]
[314305035,1708168244975,-48610.48093601,0.00047,37]
[314305036,1708168244985,-1750.0,0.00047123,7]
[314305037,1708168244994,-2916.044,0.00047159,2]
[314305038,1708168245003,-2928.0,0.00047159,2]
[314305039,1708168245013,-8199.896,0.00047159,2]
[314305040,1708168245022,-19853.0,0.00047159,2]
[314305041,1708168245032,-38388.357,0.00047159,2]
[314305042,1708168245041,-7419.0,0.00047159,2]
[314305043,1708168245050,-2290.0,0.00047159,2]
[314305044,1708168245059,-4099.0,0.00047159,2]
[314305045,1708168245068,-1079.56,0.00047159,2]
[314305046,1708168245077,-150.0,0.00047159,2]
[314305047,1708168245087,-1000.0,0.00047292,4]
[314305048,1708168245096,-2000.0,0.00047671,7]
[314305049,1708168245105,-100000.0,0.00048,38]
[314305050,1708168245114,-10029.66793976,0.00048,5]
[314305051,1708168245122,-15655.37453229,0.00048,30]
[314305052,1708168245131,-1000.0,0.00048,22]
[314305053,1708168245141,-1000.0,0.00048,22]
[314305054,1708168245150,-355.14,0.00048018,2]
[314305055,1708168245159,-3000.0,0.0004802,40]
[314305056,1708168245168,-153.02700985,0.00048175,37]
[314305057,1708168245177,-692.9848618,0.00048193,5]
[314305058,1708168245186,-2250.0,0.00048219,7]
[314305059,1708168245196,-158.0,0.00048271,30]
[314305060,1708168245205,-158.23203844,0.00048437,30]
[314305061,1708168245214,-205.56315575,0.000485,25]
[314305062,1708168245223,-154.56,0.000486,6]
[314305063,1708168245232,-154.56,0.000486,6]
[314305064,1708168245241,-257.23,0.000486,6]
[314305065,1708168245250,-257.23,0.000486,6]
[314305066,1708168245259,-257.23,0.000486,6]
[314305067,1708168245269,-257.23,0.000486,6]
[314305068,1708168245278,-257.23,0.000486,6]
[314305069,1708168245286,-257.23,0.000486,6]
[314305070,1708168245295,-257.23,0.000486,6]
[314305071,1708168245304,-257.23,0.000486,6]
[314305072,1708168245314,-257.23,0.000486,6]
[314305073,1708168245323,-257.23,0.000486,6]
[314305074,1708168245332,-257.23,0.000486,6]
[314305075,1708168245341,-257.23,0.000486,6]
[314305076,1708168245350,-257.23,0.000486,6]
[314305077,1708168245359,-257.23,0.000486,6]
[314305078,1708168245368,-257.23,0.000486,6]
[314305079,1708168245377,-257.23,0.000486,6]
[314305080,1708168245386,-257.23,0.000486,6]
[314305081,1708168245395,-257.23,0.000486,6]
[314305082,1708168245404,-257.23,0.000486,6]
[314305083,1708168245413,-257.23,0.000486,6]
[314305084,1708168245422,-27317.32605901,0.000487,120]
[314305085,1708168245431,-166.05101382,0.00048742,30]
[314305086,1708168245440,-180.021789,0.00048748,93]
[314305087,1708168245450,-2500.0,0.00048767,7]
[314305088,1708168245459,-158.0,0.00048819,30]
[314305089,1708168245468,-158.23203844,0.00048914,30]
[314305090,1708168245477,-239.89394654,0.00048946,8]
[314305091,1708168245486,-198.88949831,0.00048946,8]
[314305092,1708168245495,-1290.966,0.00048947,2]
[314305093,1708168245504,-1865.0,0.00048947,2]
[314305094,1708168245512,-2690.0,0.00048947,2]
[314305095,1708168245521,-842.0,0.00048947,2]
[314305096,1708168245530,-953.0,0.00048947,2]
[314305097,1708168245539,-708.0,0.00048947,2]
[314305098,1708168245548,-216.0,0.00048947,2]
[314305099,1708168245557,-1255.0,0.00048947,2]
[314305100,1708168245565,-1231.0,0.00048947,2]
[314305101,1708168245574,-1949.0,0.00048947,2]
[314305102,1708168245583,-1005.0,0.00048947,2]
[314305103,1708168245592,-276.0,0.00048947,2]
[314305104,1708168245601,-858.0,0.00048947,2]
[314305105,1708168245610,-429.0,0.00048947,2]
[314305106,1708168245619,-1138.0,0.00048947,2]
[314305107,1708168245628,-321.0,0.00048947,2]
[314305108,1708168245637,-2871.0,0.00048947,2]
[314305109,1708168245646,-343.0,0.00048947,2]
[314305110,1708168245655,-160.749,0.00048947,2]
[314305111,1708168245664,-100000.0,0.00049,39]
[314305112,1708168245673,-223.021788,0.00049148,93]
[314305113,1708168245682,-14288.5,0.00049154,2]
[314305114,1708168245692,-500.0,0.00049315,120]
[314305115,1708168245701,-2750.0,0.00049315,7]
[314305116,1708168245710,-158.23203844,0.00049355,30]
[314305117,1708168245719,-171.0,0.00049367,60]
[314305118,1708168245729,-223.021788,0.00049448,93]
[314305119,1708168245738,-456.43,0.00049564,120]
[314305120,1708168245747,-500.0,0.00049589,120]
[314305121,1708168245757,-13918.3,0.000497,35]
[314305122,1708168245766,-223.021788,0.00049748,94]
[314305123,1708168245775,-692.9848618,0.00049772,5]
[314305124,1708168245785,-945.0534,0.00049799,2]
[314305125,1708168245794,-182.0,0.000498,120]
[314305126,1708168245803,-1000.0,0.000498,120]
[314305127,1708168245813,-1000.0,0.00049834,4]
[314305128,1708168245822,-500.0,0.00049863,120]
[314305129,1708168245832,-3000.0,0.00049863,7]
[314305130,1708168245841,-1466.0173137,0.000499,2]
[314305131,1708168245850,-2000.0,0.000499,2]
[314305132,1708168245955,-171.0,0.00049915,60]
[314305133,1708168245980,-100000.0,0.0005,40]
[314305134,1708168245990,-10000.0,0.0005,2]
[314305135,1708168246000,-23715.30459871,0.0005,120]
[314305136,1708168246009,-2009.57004619,0.0005,120]
[314305137,1708168246019,-7301.69732635,0.0005,80]
[314305138,1708168246029,-7000.0,0.0005,100]
[314305139,1708168246039,-1230.05,0.0005,120]
[314305140,1708168246048,-753.22,0.0005,120]
[314305141,1708168246058,-215092.0,0.0005,120]
[314305142,1708168246066,-865.76443847,0.0005,60]
[314305143,1708168246075,-200.0,0.0005,120]
[314305144,1708168246085,-10000.0,0.0005,25]
[314305145,1708168246094,-64238.0,0.0005,12]
[314305146,1708168246103,-5000.0,0.0005,120]
[314305147,1708168246112,-163.91770346,0.0005,30]
[314305148,1708168246121,-500.0,0.00050136,120]
[314305149,1708168246130,-223.021788,0.00050148,94]
[314305150,1708168246139,-2928.0,0.00050159,120]
[314305151,1708168246148,-8166.0,0.00050159,120]
[314305152,1708168246157,-19853.0,0.00050159,120]
[314305153,1708168246166,-7419.0,0.00050159,120]
[314305154,1708168246175,-2290.0,0.00050159,120]
[314305155,1708168246185,-4099.0,0.00050159,120]
[314305156,1708168246194,-1037.0,0.00050159,120]
[314305157,1708168246203,-7606.10941803,0.000502,120]
[314305158,1708168246212,-7606.10941794,0.000502,120]
[314305159,1708168246221,-7606.10941794,0.000502,120]
[314305160,1708168246231,-7606.10941794,0.000502,120]
[314305161,1708168246240,-7606.10941794,0.000502,120]
[314305162,1708168246249,-7606.10941794,0.000502,120]
[314305163,1708168246258,-7606.10941794,0.000502,120]
[314305164,1708168246267,-7606.10941794,0.000502,120]
[314305165,1708168246276,-7606.10941794,0.000502,120]
[314305166,1708168246285,-7606.10941794,0.000502,120]
[314305167,1708168246296,-7606.10941794,0.000502,120]
[314305168,1708168246307,-7606.10941794,0.000502,120]
[314305169,1708168246317,-7606.10941794,0.000502,120]
[314305170,1708168246326,-7606.10941794,0.000502,120]
[314305171,1708168246335,-7606.10941794,0.000502,120]
[314305172,1708168246344,-7606.10941794,0.000502,120]
[314305173,1708168246353,-7606.10941794,0.000502,120]
[314305174,1708168246362,-7606.10941794,0.000502,120]
[314305175,1708168246371,-7606.10941794,0.000502,120]
[314305176,1708168246380,-7606.10941794,0.000502,120]
[314305177,1708168246389,-355.14,0.00050282,2]
[314305178,1708168246398,-158.831,0.00050308,120]
[314305179,1708168246407,-158.83,0.00050308,120]
[314305180,1708168246416,-158.83,0.00050308,120]
[314305181,1708168246425,-2905.006,0.00050308,120]
[314305182,1708168246435,-158.831,0.00050308,120]
[314305183,1708168246444,-2905.006,0.00050308,120]
[314305184,1708168246453,-2905.006,0.00050308,120]
[314305185,1708168246462,-2905.006,0.00050308,120]
[314305186,1708168246471,-2905.006,0.00050308,120]
[314305187,1708168246481,-1000.0,0.00050399,2]
[314305188,1708168246490,-545.07531678,0.0005041,120]
[314305189,1708168246499,-1675.65865152,0.0005041,7]
[314305190,1708168246508,-223.021788,0.00050448,95]
[314305191,1708168246517,-58000.0,0.00050458,7]
[314305192,1708168246526,-171.0,0.00050463,60]
[314305193,1708168246536,-3000.0,0.0005052,52]
[314305194,1708168246545,-236.71165668,0.00050581,7]
[314305195,1708168246554,-4921.11984,0.00050684,30]
[314305196,1708168246564,-2698.52176,0.00050684,120]
[314305197,1708168246573,-19684.479358,0.00050684,30]
[314305198,1708168246583,-19684.479359,0.00050684,30]
[314305199,1708168246592,-2698.521761,0.00050684,120]
[314305200,1708168246601,-2361.206541,0.00050684,120]
[314305201,1708168246610,-29526.719038,0.00050684,30]
[314305202,1708168246619,-4722.413082,0.00050684,120]
[314305203,1708168246628,-22145.039278,0.00050684,30]
[314305204,1708168246637,-223.021788,0.00050748,95]
[314305205,1708168246646,-500.0,0.0005077,30]
[314305206,1708168246655,-181.45034987,0.00050805,60]
[314305207,1708168246664,-150.0,0.000509,120]
[314305208,1708168246673,-239.89394654,0.00050999,10]
[314305209,1708168246682,-198.88949831,0.00050999,10]
[314305210,1708168246690,-39986.01354154,0.00051,41]
[314305211,1708168246704,-60013.98645846,0.00051,41]
[314305212,1708168246713,-17515.0,0.00051,120]
[314305213,1708168246722,-20242.2949,0.00051,120]
[314305214,1708168246731,-171.0,0.00051011,60]
[314305215,1708168246741,-262.62270052,0.0005102,2]